[Event "Chessable Masters - Torneo preliminare"]
[White "Sharapov, Evgeny"]
[Black "Ibarra Jerez, Jose Carlos"]
[WhiteFideId "14103133"]
[BlackFideId "2226332"]
[WhiteElo "2337"]
[BlackElo "2546"]
[Result "1/2-1/2"]
[Round "6"]
[TimeControl "600+2"]
[Date "2023.03.13"]
[WhiteClock "0:02:39"]
[BlackClock "0:00:49"]

1. e4 {[%clk 0:09:55]}  c5 {[%clk 0:10:00]} 2. Nf3 {[%clk 0:09:56]}  Nc6 {[%clk 0:10:00]} 3. d4 {[%clk 0:09:57]}  cxd4 {[%clk 0:10:01]} 4. Nxd4 {[%clk 0:09:57]}  e5 {[%clk 0:10:02]} 5. Nb5 {[%clk 0:09:58]}  d6 {[%clk 0:10:03]} 6. N1c3 {[%clk 0:09:58]}  a6 {[%clk 0:10:02]} 7. Na3 {[%clk 0:09:59]}  Be6 {[%clk 0:10:04]} 8. Nc4 {[%clk 0:09:59]}  Rb8 {[%clk 0:10:04]} 9. Ne3 {[%clk 0:09:59]}  Nf6 {[%clk 0:10:00]} 10. g3 {[%clk 0:10:00]}  h5 {[%clk 0:09:56]} 11. h3 {[%clk 0:10:00]}  g6 {[%clk 0:09:10]} 12. Bg2 {[%clk 0:10:00]}  Bh6 {[%clk 0:08:44]} 13. O-O {[%clk 0:10:00]}  O-O {[%clk 0:08:24]} 14. Ncd5 {[%clk 0:09:56]}  Bxd5 {[%clk 0:07:50]} 15. exd5 {[%clk 0:09:57]}  Ne7 {[%clk 0:07:50]} 16. a4 {[%clk 0:09:37]}  Rc8 {[%clk 0:07:44]} 17. a5 {[%clk 0:08:57]}  Rc5 {[%clk 0:07:38]} 18. b4 {[%clk 0:08:57]}  Rc7 {[%clk 0:07:12]} 19. Bb2 {[%clk 0:08:35]}  Qc8 {[%clk 0:07:08]} 20. c4 {[%clk 0:08:11]}  Bxe3 {[%clk 0:06:20]} 21. fxe3 {[%clk 0:08:11]}  Nf5 {[%clk 0:06:22]} 22. Qd3 {[%clk 0:07:57]}  Rxc4 {[%clk 0:05:13]} 23. e4 {[%clk 0:07:54]}  Nxe4 {[%clk 0:05:14]} 24. Rfc1 {[%clk 0:07:16]}  Nd2 {[%clk 0:03:55]} 25. Qxd2 {[%clk 0:07:00]}  Nxg3 {[%clk 0:03:53]} 26. Qd3 {[%clk 0:06:55]}  Rxc1+ {[%clk 0:02:26]} 27. Rxc1 {[%clk 0:06:54]}  Qd7 {[%clk 0:02:28]} 28. Qxg3 {[%clk 0:06:53]}  Qb5 {[%clk 0:02:29]} 29. Qc3 {[%clk 0:06:39]}  Qe2 {[%clk 0:02:12]} 30. Re1 {[%clk 0:06:34]}  Qb5 {[%clk 0:02:11]} 31. Rc1 {[%clk 0:06:14]}  Qe2 {[%clk 0:02:12]} 32. Bf3 {[%clk 0:06:13]}  Qb5 {[%clk 0:02:10]} 33. Qc4 {[%clk 0:06:10]}  Qd7 {[%clk 0:02:11]} 34. Bg2 {[%clk 0:06:05]}  Qf5 {[%clk 0:02:07]} 35. Qe4 {[%clk 0:05:51]}  Qg5 {[%clk 0:02:08]} 36. Qe2 {[%clk 0:04:58]}  f5 {[%clk 0:02:05]} 37. Kh1 {[%clk 0:04:51]}  Rf7 {[%clk 0:01:43]} 38. Rc8+ {[%clk 0:04:34]}  Kh7 {[%clk 0:01:43]} 39. Bc1 {[%clk 0:04:31]}  Qh4 {[%clk 0:01:42]} 40. Rc4 {[%clk 0:04:14]}  f4 {[%clk 0:01:34]} 41. Bd2 {[%clk 0:03:55]}  Qg3 {[%clk 0:01:27]} 42. Qf3 {[%clk 0:03:50]}  Qg5 {[%clk 0:01:25]} 43. Be1 {[%clk 0:03:43]}  Qf5 {[%clk 0:01:23]} 44. Qe4 {[%clk 0:03:40]}  f3 {[%clk 0:01:15]} 45. Qxf5 {[%clk 0:03:36]}  fxg2+ {[%clk 0:01:15]} 46. Kxg2 {[%clk 0:03:37]}  gxf5 {[%clk 0:01:16]} 47. Kf3 {[%clk 0:03:30]}  Kg6 {[%clk 0:01:14]} 48. Rc8 {[%clk 0:03:30]}  f4 {[%clk 0:01:13]} 49. Ke4 {[%clk 0:03:28]}  f3 {[%clk 0:01:14]} 50. Bf2 {[%clk 0:03:28]}  Rf4+ {[%clk 0:01:15]} 51. Ke3 {[%clk 0:03:29]}  Rxb4 {[%clk 0:01:14]} 52. Rd8 {[%clk 0:03:22]}  Kf5 {[%clk 0:01:12]} 53. Kxf3 {[%clk 0:03:15]}  e4+ {[%clk 0:01:06]} 54. Ke2 {[%clk 0:03:14]}  Rb2+ {[%clk 0:01:02]} 55. Ke3 {[%clk 0:03:10]}  Rb3+ {[%clk 0:01:03]} 56. Kd4 {[%clk 0:03:09]}  Rd3+ {[%clk 0:00:47]} 57. Kc4 {[%clk 0:03:09]}  Ke5 {[%clk 0:00:48]} 58. Re8+ {[%clk 0:03:06]}  Kf4 {[%clk 0:00:49]} 59. Rf8+ {[%clk 0:02:58]}  Ke5 {[%clk 0:00:49]} 60. Bh4 {[%clk 0:02:52]}  Rd4+ {[%clk 0:00:47]} 61. Kc3 {[%clk 0:02:53]}  Rd3+ {[%clk 0:00:48]} 62. Kc4 {[%clk 0:02:37]}  Rd4+ {[%clk 0:00:49]} 63. Kc3 {[%clk 0:02:38]}  Rd3+ {[%clk 0:00:49]} 64. Kc4 {[%clk 0:02:39]} 1/2-1/2


[Site "Internet"]

[Event "Chessable Masters - Torneo preliminare"]
[White "Wagner, Dennis"]
[Black "Esipenko, Andrey"]
[WhiteFideId "24650684"]
[BlackFideId "24175439"]
[WhiteElo "2456"]
[BlackElo "2682"]
[Result "1-0"]
[Round "6"]
[TimeControl "600+2"]
[Date "2023.03.13"]
[WhiteClock "0:00:16"]
[BlackClock "0:00:02"]

1. d4 {[%clk 0:10:01]}  Nf6 {[%clk 0:10:00]} 2. c4 {[%clk 0:10:02]}  e6 {[%clk 0:10:02]} 3. Nf3 {[%clk 0:10:03]}  d5 {[%clk 0:10:03]} 4. g3 {[%clk 0:10:04]}  Bb4+ {[%clk 0:10:04]} 5. Bd2 {[%clk 0:10:05]}  Be7 {[%clk 0:10:06]} 6. Bg2 {[%clk 0:10:07]}  O-O {[%clk 0:10:07]} 7. O-O {[%clk 0:10:08]}  c6 {[%clk 0:10:09]} 8. Qc2 {[%clk 0:10:10]}  Nbd7 {[%clk 0:10:10]} 9. Rd1 {[%clk 0:10:11]}  b6 {[%clk 0:10:11]} 10. b3 {[%clk 0:10:11]}  a5 {[%clk 0:10:10]} 11. Bc3 {[%clk 0:10:11]}  Ne4 {[%clk 0:10:10]} 12. Ne5 {[%clk 0:10:09]}  Nxe5 {[%clk 0:09:47]} 13. Bxe4 {[%clk 0:10:10]}  Ng6 {[%clk 0:09:38]} 14. Bg2 {[%clk 0:10:07]}  f5 {[%clk 0:09:39]} 15. e3 {[%clk 0:10:04]}  Nh8 {[%clk 0:08:36]} 16. Nd2 {[%clk 0:10:00]}  g5 {[%clk 0:08:37]} 17. Nf3 {[%clk 0:09:25]}  Ng6 {[%clk 0:08:38]} 18. Bb2 {[%clk 0:08:43]}  Ba6 {[%clk 0:08:06]} 19. cxd5 {[%clk 0:07:16]}  cxd5 {[%clk 0:08:06]} 20. Qc6 {[%clk 0:07:17]}  Kf7 {[%clk 0:07:54]} 21. Bf1 {[%clk 0:04:26]}  Rc8 {[%clk 0:07:37]} 22. Qa4 {[%clk 0:04:26]}  Bxf1 {[%clk 0:07:34]} 23. Kxf1 {[%clk 0:04:27]}  g4 {[%clk 0:06:01]} 24. Ne5+ {[%clk 0:04:24]}  Nxe5 {[%clk 0:05:58]} 25. dxe5 {[%clk 0:04:26]}  Rc2 {[%clk 0:05:46]} 26. Bd4 {[%clk 0:04:23]}  Qc7 {[%clk 0:05:46]} 27. Qb5 {[%clk 0:04:18]}  Rb8 {[%clk 0:05:32]} 28. a4 {[%clk 0:04:02]}  h5 {[%clk 0:05:24]} 29. Re1 {[%clk 0:02:55]}  h4 {[%clk 0:04:30]} 30. Re2 {[%clk 0:02:56]}  Bb4 {[%clk 0:03:41]} 31. gxh4 {[%clk 0:02:22]}  Rh8 {[%clk 0:02:24]} 32. Bxb6 {[%clk 0:02:21]}  Qc3 {[%clk 0:02:02]} 33. Rxc2 {[%clk 0:01:49]}  Qxc2 {[%clk 0:01:58]} 34. Bxa5 {[%clk 0:01:42]}  Be7 {[%clk 0:01:54]} 35. Qb7 {[%clk 0:01:04]}  Qe4 {[%clk 0:01:00]} 36. Kg1 {[%clk 0:00:51]}  f4 {[%clk 0:01:02]} 37. exf4 {[%clk 0:00:47]}  Qxf4 {[%clk 0:01:03]} 38. Re1 {[%clk 0:00:07]}  Rxh4 {[%clk 0:00:24]} 39. Bd8 {[%clk 0:00:08]}  Qxh2+ {[%clk 0:00:25]} 40. Kf1 {[%clk 0:00:10]}  Qh3+ {[%clk 0:00:17]} 41. Ke2 {[%clk 0:00:10]}  Qf3+ {[%clk 0:00:19]} 42. Kd2 {[%clk 0:00:11]}  Qxf2+ {[%clk 0:00:18]} 43. Re2 {[%clk 0:00:12]}  Qf4+ {[%clk 0:00:09]} 44. Kc2 {[%clk 0:00:14]}  Qf5+ {[%clk 0:00:03]} 45. Kb2 {[%clk 0:00:15]}  Qg5 {[%clk 0:00:02]} 46. Bxe7 {[%clk 0:00:16]} 1-0


[Site "Internet"]

[Event "Chessable Masters - Torneo preliminare"]
[White "Van Foreest, Lucas"]
[Black "Mamedov, Rauf"]
[WhiteFideId "1039792"]
[BlackFideId "13401653"]
[WhiteElo "2483"]
[BlackElo "2632"]
[Result "1-0"]
[Round "6"]
[TimeControl "600+2"]
[Date "2023.03.13"]
[WhiteClock "0:07:00"]
[BlackClock "0:02:31"]

1. d4 {[%clk 0:10:01]}  Nf6 {[%clk 0:09:59]} 2. c4 {[%clk 0:09:58]}  g6 {[%clk 0:10:00]} 3. Nc3 {[%clk 0:09:59]}  Bg7 {[%clk 0:10:01]} 4. e4 {[%clk 0:10:00]}  d6 {[%clk 0:10:03]} 5. h3 {[%clk 0:10:00]}  O-O {[%clk 0:10:03]} 6. Be3 {[%clk 0:10:01]}  Nc6 {[%clk 0:10:05]} 7. Nf3 {[%clk 0:09:59]}  e5 {[%clk 0:09:30]} 8. d5 {[%clk 0:10:00]}  Ne7 {[%clk 0:09:23]} 9. g4 {[%clk 0:10:00]}  c6 {[%clk 0:09:15]} 10. Be2 {[%clk 0:09:51]}  cxd5 {[%clk 0:09:12]} 11. cxd5 {[%clk 0:09:51]}  Bd7 {[%clk 0:09:13]} 12. Nd2 {[%clk 0:09:33]}  Rc8 {[%clk 0:09:14]} 13. Qb3 {[%clk 0:09:14]}  b6 {[%clk 0:09:11]} 14. f3 {[%clk 0:09:03]}  Ne8 {[%clk 0:08:20]} 15. h4 {[%clk 0:08:57]}  f5 {[%clk 0:08:14]} 16. gxf5 {[%clk 0:08:56]}  gxf5 {[%clk 0:08:14]} 17. O-O-O {[%clk 0:08:51]}  Kh8 {[%clk 0:08:16]} 18. Kb1 {[%clk 0:08:52]}  Ng6 {[%clk 0:07:42]} 19. h5 {[%clk 0:08:48]}  Nf4 {[%clk 0:07:43]} 20. Ba6 {[%clk 0:08:48]}  Rb8 {[%clk 0:07:43]} 21. h6 {[%clk 0:08:49]}  Bf6 {[%clk 0:07:44]} 22. Bb5 {[%clk 0:08:26]}  Nc7 {[%clk 0:07:33]} 23. Bxd7 {[%clk 0:08:27]}  Qxd7 {[%clk 0:07:34]} 24. exf5 {[%clk 0:08:29]}  b5 {[%clk 0:07:15]} 25. Nde4 {[%clk 0:08:24]}  b4 {[%clk 0:07:17]} 26. Nxf6 {[%clk 0:08:22]}  Rxf6 {[%clk 0:06:28]} 27. Bxf4 {[%clk 0:08:12]}  exf4 {[%clk 0:05:42]} 28. Ne4 {[%clk 0:08:11]}  Rxf5 {[%clk 0:05:43]} 29. Rhg1 {[%clk 0:08:03]}  Nb5 {[%clk 0:04:32]} 30. Rg7 {[%clk 0:07:46]}  Qe8 {[%clk 0:04:08]} 31. Qd3 {[%clk 0:07:31]}  Qe5 {[%clk 0:03:21]} 32. Ng5 {[%clk 0:07:16]}  Na3+ {[%clk 0:02:30]} 33. Ka1 {[%clk 0:07:13]}  Rbf8 {[%clk 0:02:31]} 34. Rg1 {[%clk 0:07:00]} 1-0


[Site "Internet"]

[Event "Chessable Masters - Torneo preliminare"]
[White "Frolyanov, Dmitry"]
[Black "Grischuk, Alexander"]
[WhiteFideId "4151976"]
[BlackFideId "4126025"]
[WhiteElo "2451"]
[BlackElo "2731"]
[Result "1-0"]
[Round "6"]
[TimeControl "600+2"]
[Date "2023.03.13"]
[WhiteClock "0:00:37"]
[BlackClock "0:00:02"]

1. d4 {[%clk 0:10:01]}  e6 {[%clk 0:09:29]} 2. c4 {[%clk 0:10:01]}  b6 {[%clk 0:09:29]} 3. Nc3 {[%clk 0:09:57]}  Bb4 {[%clk 0:09:22]} 4. Qc2 {[%clk 0:09:51]}  Bb7 {[%clk 0:09:21]} 5. Nf3 {[%clk 0:09:14]}  f5 {[%clk 0:08:41]} 6. Bd2 {[%clk 0:09:01]}  Nf6 {[%clk 0:08:40]} 7. e3 {[%clk 0:08:51]}  O-O {[%clk 0:08:28]} 8. Bd3 {[%clk 0:08:50]}  a5 {[%clk 0:08:10]} 9. O-O-O {[%clk 0:08:42]}  Qe7 {[%clk 0:07:55]} 10. Rhg1 {[%clk 0:08:34]}  Bxc3 {[%clk 0:07:02]} 11. Bxc3 {[%clk 0:08:32]}  Ne4 {[%clk 0:07:02]} 12. Kb1 {[%clk 0:07:40]}  d6 {[%clk 0:06:07]} 13. Rdf1 {[%clk 0:07:26]}  c5 {[%clk 0:04:49]} 14. Nd2 {[%clk 0:07:12]}  Nxc3+ {[%clk 0:04:47]} 15. Qxc3 {[%clk 0:07:14]}  Nc6 {[%clk 0:04:38]} 16. Nf3 {[%clk 0:05:05]}  Nb4 {[%clk 0:03:48]} 17. Ka1 {[%clk 0:05:02]}  Rac8 {[%clk 0:02:01]} 18. Bb1 {[%clk 0:05:00]}  d5 {[%clk 0:01:52]} 19. cxd5 {[%clk 0:04:40]}  Bxd5 {[%clk 0:01:39]} 20. Rc1 {[%clk 0:04:36]}  c4 {[%clk 0:00:51]} 21. Ne5 {[%clk 0:04:32]}  b5 {[%clk 0:00:52]} 22. g4 {[%clk 0:04:25]}  Be4 {[%clk 0:00:54]} 23. gxf5 {[%clk 0:04:12]}  exf5 {[%clk 0:00:54]} 24. f3 {[%clk 0:03:53]}  Bxb1 {[%clk 0:00:46]} 25. Kxb1 {[%clk 0:03:55]}  a4 {[%clk 0:00:42]} 26. Rg2 {[%clk 0:03:40]}  Nd5 {[%clk 0:00:39]} 27. Qd2 {[%clk 0:03:20]}  Qb4 {[%clk 0:00:29]} 28. Rcg1 {[%clk 0:03:15]}  Rc7 {[%clk 0:00:26]} 29. Qxb4 {[%clk 0:01:49]}  Nxb4 {[%clk 0:00:27]} 30. e4 {[%clk 0:01:50]}  fxe4 {[%clk 0:00:24]} 31. fxe4 {[%clk 0:01:52]}  g6 {[%clk 0:00:05]} 32. a3 {[%clk 0:01:39]}  Nd3 {[%clk 0:00:03]} 33. Nxd3 {[%clk 0:01:29]}  cxd3 {[%clk 0:00:05]} 34. Rd2 {[%clk 0:01:10]}  Rf3 {[%clk 0:00:05]} 35. Rgd1 {[%clk 0:01:08]}  Re3 {[%clk 0:00:03]} 36. e5 {[%clk 0:01:06]}  Kf7 {[%clk 0:00:03]} 37. Rxd3 {[%clk 0:01:06]}  Re4 {[%clk 0:00:05]} 38. Rf3+ {[%clk 0:01:05]}  Ke7 {[%clk 0:00:05]} 39. d5 {[%clk 0:01:03]}  Rc8 {[%clk 0:00:04]} 40. d6+ {[%clk 0:01:01]}  Ke6 {[%clk 0:00:04]} 41. Rh3 {[%clk 0:00:37]}  Rxe5 {[%clk 0:00:03]} 42. Rxh7 {[%clk 0:00:37]}  Rd8 {[%clk 0:00:02]} 43. Re7+ {[%clk 0:00:37]} 1-0


[Site "Internet"]

[Event "Chessable Masters - Torneo preliminare"]
[White "Predke, Alexandr"]
[Black "Vetoshko, Volodymyr"]
[WhiteFideId "24107581"]
[BlackFideId "14122480"]
[WhiteElo "2582"]
[BlackElo "2457"]
[Result "0-1"]
[Round "6"]
[TimeControl "600+2"]
[Date "2023.03.13"]
[WhiteClock "0:00:05"]
[BlackClock "0:00:26"]

1. e4 {[%clk 0:10:01]}  c5 {[%clk 0:09:59]} 2. Nf3 {[%clk 0:10:02]}  e6 {[%clk 0:10:00]} 3. d4 {[%clk 0:10:02]}  cxd4 {[%clk 0:10:02]} 4. Nxd4 {[%clk 0:10:03]}  a6 {[%clk 0:10:03]} 5. g3 {[%clk 0:10:03]}  d5 {[%clk 0:10:03]} 6. Nb3 {[%clk 0:09:52]}  Nf6 {[%clk 0:09:20]} 7. exd5 {[%clk 0:09:49]}  Qxd5 {[%clk 0:09:15]} 8. Qxd5 {[%clk 0:09:44]}  Nxd5 {[%clk 0:09:17]} 9. Bg2 {[%clk 0:09:43]}  Nc6 {[%clk 0:08:47]} 10. O-O {[%clk 0:09:43]}  Be7 {[%clk 0:08:37]} 11. c3 {[%clk 0:09:35]}  Ne5 {[%clk 0:07:54]} 12. Rd1 {[%clk 0:09:15]}  Bd7 {[%clk 0:07:41]} 13. N1d2 {[%clk 0:08:46]}  O-O-O {[%clk 0:07:02]} 14. a4 {[%clk 0:08:18]}  h5 {[%clk 0:06:46]} 15. h4 {[%clk 0:08:13]}  g5 {[%clk 0:05:59]} 16. hxg5 {[%clk 0:08:14]}  h4 {[%clk 0:05:59]} 17. Nf1 {[%clk 0:06:54]}  hxg3 {[%clk 0:05:02]} 18. Nxg3 {[%clk 0:06:56]}  Rdg8 {[%clk 0:04:27]} 19. f4 {[%clk 0:05:53]}  Ng4 {[%clk 0:03:16]} 20. Rd3 {[%clk 0:04:08]}  f6 {[%clk 0:02:27]} 21. Ne4 {[%clk 0:03:20]}  fxg5 {[%clk 0:01:44]} 22. fxg5 {[%clk 0:03:22]}  Ne5 {[%clk 0:01:19]} 23. Rg3 {[%clk 0:03:16]}  Ng6 {[%clk 0:01:13]} 24. Nbc5 {[%clk 0:02:48]}  Ngf4 {[%clk 0:01:10]} 25. Bxf4 {[%clk 0:01:49]}  Nxf4 {[%clk 0:01:12]} 26. Rg4 {[%clk 0:01:45]}  Nxg2 {[%clk 0:00:33]} 27. Nxd7 {[%clk 0:01:32]}  Ne3 {[%clk 0:00:29]} 28. Rg3 {[%clk 0:00:41]}  Nf5 {[%clk 0:00:30]} 29. Rd3 {[%clk 0:00:04]}  Bxg5 {[%clk 0:00:31]} 30. Nb6+ {[%clk 0:00:03]}  Kc7 {[%clk 0:00:32]} 31. Na8+ {[%clk 0:00:04]}  Rxa8 {[%clk 0:00:27]} 32. Nxg5 {[%clk 0:00:05]}  Rag8 {[%clk 0:00:26]} 0-1


[Site "Internet"]

[Event "Chessable Masters - Torneo preliminare"]
[White "Drozdowski, Kacper"]
[Black "Vaibhav, Suri"]
[WhiteFideId "1136720"]
[BlackFideId "5045185"]
[WhiteElo "2472"]
[BlackElo "2543"]
[Result "1/2-1/2"]
[Round "6"]
[TimeControl "600+2"]
[Date "2023.03.13"]
[WhiteClock "0:02:12"]
[BlackClock "0:00:44"]

1. e4 {[%clk 0:10:01]}  e5 {[%clk 0:10:00]} 2. Nf3 {[%clk 0:10:02]}  Nc6 {[%clk 0:10:02]} 3. Bc4 {[%clk 0:10:02]}  Bc5 {[%clk 0:10:02]} 4. c3 {[%clk 0:10:03]}  Nf6 {[%clk 0:10:04]} 5. d3 {[%clk 0:10:05]}  d6 {[%clk 0:10:03]} 6. Bb3 {[%clk 0:10:06]}  a6 {[%clk 0:10:02]} 7. Nbd2 {[%clk 0:10:07]}  Ba7 {[%clk 0:10:02]} 8. h3 {[%clk 0:10:08]}  h6 {[%clk 0:10:03]} 9. Nh2 {[%clk 0:10:07]}  O-O {[%clk 0:09:52]} 10. Ndf1 {[%clk 0:10:07]}  d5 {[%clk 0:09:39]} 11. Qf3 {[%clk 0:10:04]}  Be6 {[%clk 0:09:26]} 12. Ng3 {[%clk 0:10:03]}  Na5 {[%clk 0:08:33]} 13. Bc2 {[%clk 0:10:02]}  dxe4 {[%clk 0:08:22]} 14. dxe4 {[%clk 0:10:04]}  Nc4 {[%clk 0:08:23]} 15. Ng4 {[%clk 0:09:54]}  Nh7 {[%clk 0:07:19]} 16. O-O {[%clk 0:07:46]}  Nd2 {[%clk 0:07:06]} 17. Bxd2 {[%clk 0:07:35]}  Qxd2 {[%clk 0:07:08]} 18. Rac1 {[%clk 0:05:46]}  Ng5 {[%clk 0:06:31]} 19. Qe2 {[%clk 0:05:40]}  Rad8 {[%clk 0:06:31]} 20. Rfd1 {[%clk 0:05:30]}  Qxe2 {[%clk 0:06:10]} 21. Nxe2 {[%clk 0:05:32]}  f6 {[%clk 0:05:38]} 22. Kf1 {[%clk 0:05:08]}  h5 {[%clk 0:05:14]} 23. Ne3 {[%clk 0:05:06]}  Bxe3 {[%clk 0:05:15]} 24. fxe3 {[%clk 0:05:08]}  h4 {[%clk 0:05:17]} 25. b3 {[%clk 0:03:54]}  Bf7 {[%clk 0:05:15]} 26. c4 {[%clk 0:03:54]}  Bh5 {[%clk 0:04:42]} 27. Ke1 {[%clk 0:03:49]}  Kf7 {[%clk 0:03:52]} 28. Rxd8 {[%clk 0:03:48]}  Rxd8 {[%clk 0:03:54]} 29. Nc3 {[%clk 0:03:49]}  a5 {[%clk 0:03:49]} 30. a3 {[%clk 0:03:48]}  c6 {[%clk 0:03:48]} 31. Ra1 {[%clk 0:03:32]}  Ra8 {[%clk 0:03:40]} 32. Bd1 {[%clk 0:03:29]}  Bxd1 {[%clk 0:03:23]} 33. Rxd1 {[%clk 0:03:31]}  Ke7 {[%clk 0:03:24]} 34. Ke2 {[%clk 0:03:31]}  Ne6 {[%clk 0:03:20]} 35. Na4 {[%clk 0:03:25]}  Rb8 {[%clk 0:01:59]} 36. Nb6 {[%clk 0:02:25]}  Rd8 {[%clk 0:02:00]} 37. Rxd8 {[%clk 0:02:24]}  Kxd8 {[%clk 0:02:02]} 38. b4 {[%clk 0:02:25]}  axb4 {[%clk 0:01:19]} 39. axb4 {[%clk 0:02:27]}  Nc7 {[%clk 0:01:07]} 40. Kd3 {[%clk 0:02:20]}  Na6 {[%clk 0:00:42]} 41. Kc3 {[%clk 0:02:19]}  Nc7 {[%clk 0:00:43]} 42. c5 {[%clk 0:02:17]}  Nb5+ {[%clk 0:00:41]} 43. Kd3 {[%clk 0:02:18]}  Ke7 {[%clk 0:00:40]} 44. Nc4 {[%clk 0:02:16]}  Kd7 {[%clk 0:00:41]} 45. Nd2 {[%clk 0:02:11]}  Nc7 {[%clk 0:00:41]} 46. Nf3 {[%clk 0:02:11]}  g5 {[%clk 0:00:42]} 47. Nd2 {[%clk 0:02:11]}  Na6 {[%clk 0:00:41]} 48. Kc3 {[%clk 0:02:10]}  Nc7 {[%clk 0:00:42]} 49. Nc4 {[%clk 0:02:11]}  Nb5+ {[%clk 0:00:44]} 50. Kd3 {[%clk 0:02:12]}  Kc7 {[%clk 0:00:44]} 1/2-1/2


[Site "Internet"]

[Event "Chessable Masters - Torneo preliminare"]
[White "Hammer, Jon Ludvig"]
[Black "Nigmatov, Ortik"]
[WhiteFideId "1503707"]
[BlackFideId "14202131"]
[WhiteElo "2647"]
[BlackElo "2344"]
[Result "1-0"]
[Round "6"]
[TimeControl "600+2"]
[Date "2023.03.13"]
[WhiteClock "0:00:11"]
[BlackClock "0:00:58"]

1. e4 {[%clk 0:10:00]}  e5 {[%clk 0:09:57]} 2. Nf3 {[%clk 0:09:58]}  Nc6 {[%clk 0:09:58]} 3. Bb5 {[%clk 0:09:58]}  a6 {[%clk 0:09:59]} 4. Ba4 {[%clk 0:09:59]}  Nf6 {[%clk 0:10:00]} 5. O-O {[%clk 0:09:59]}  Bc5 {[%clk 0:10:00]} 6. c3 {[%clk 0:09:40]}  b5 {[%clk 0:10:00]} 7. Bb3 {[%clk 0:09:32]}  d6 {[%clk 0:10:00]} 8. a4 {[%clk 0:09:14]}  Bg4 {[%clk 0:09:56]} 9. h3 {[%clk 0:09:08]}  Bh5 {[%clk 0:09:55]} 10. d3 {[%clk 0:09:06]}  b4 {[%clk 0:09:22]} 11. Nbd2 {[%clk 0:09:04]}  O-O {[%clk 0:09:12]} 12. Re1 {[%clk 0:08:55]}  Na5 {[%clk 0:09:09]} 13. Bc2 {[%clk 0:08:55]}  Rb8 {[%clk 0:09:01]} 14. g4 {[%clk 0:08:23]}  Bg6 {[%clk 0:08:47]} 15. Nb3 {[%clk 0:08:22]}  Nxb3 {[%clk 0:08:37]} 16. Bxb3 {[%clk 0:08:24]}  Re8 {[%clk 0:08:25]} 17. Bg5 {[%clk 0:08:19]}  a5 {[%clk 0:08:12]} 18. Bc4 {[%clk 0:07:03]}  c6 {[%clk 0:08:08]} 19. Qd2 {[%clk 0:06:36]}  Qb6 {[%clk 0:06:43]} 20. Bxf6 {[%clk 0:06:36]}  gxf6 {[%clk 0:06:44]} 21. Re2 {[%clk 0:05:47]}  Kh8 {[%clk 0:06:40]} 22. d4 {[%clk 0:05:00]}  bxc3 {[%clk 0:05:43]} 23. dxc5 {[%clk 0:03:18]}  Qxb2 {[%clk 0:05:43]} 24. Qxb2 {[%clk 0:03:16]}  cxb2 {[%clk 0:05:44]} 25. Rb1 {[%clk 0:03:11]}  d5 {[%clk 0:05:30]} 26. Bd3 {[%clk 0:03:10]}  Rb3 {[%clk 0:05:30]} 27. Ne1 {[%clk 0:02:56]}  Reb8 {[%clk 0:05:04]} 28. Bc2 {[%clk 0:02:53]}  Ra3 {[%clk 0:04:32]} 29. f3 {[%clk 0:02:02]}  dxe4 {[%clk 0:02:56]} 30. fxe4 {[%clk 0:02:04]}  Rb4 {[%clk 0:02:57]} 31. Bd3 {[%clk 0:00:59]}  Ra2 {[%clk 0:02:08]} 32. Kf2 {[%clk 0:00:57]}  Kg7 {[%clk 0:02:05]} 33. Ke3 {[%clk 0:00:25]}  h5 {[%clk 0:01:50]} 34. gxh5 {[%clk 0:00:24]}  Bxh5 {[%clk 0:01:51]} 35. Rg2+ {[%clk 0:00:23]}  Bg6 {[%clk 0:01:53]} 36. Nc2 {[%clk 0:00:18]}  Raxa4 {[%clk 0:01:51]} 37. Nxb4 {[%clk 0:00:18]}  axb4 {[%clk 0:00:55]} 38. Rgxb2 {[%clk 0:00:18]}  Ra5 {[%clk 0:00:56]} 39. Rxb4 {[%clk 0:00:17]}  Rxc5 {[%clk 0:00:57]} 40. Rc4 {[%clk 0:00:16]}  Ra5 {[%clk 0:00:56]} 41. Rxc6 {[%clk 0:00:17]}  Ra2 {[%clk 0:00:57]} 42. Rc2 {[%clk 0:00:17]}  Ra3 {[%clk 0:00:58]} 43. Rg1 {[%clk 0:00:17]}  Kh6 {[%clk 0:00:57]} 44. Rc6 {[%clk 0:00:18]}  Ra2 {[%clk 0:00:56]} 45. Rxf6 {[%clk 0:00:18]}  Rh2 {[%clk 0:00:58]} 46. Rg3 {[%clk 0:00:18]}  Rh1 {[%clk 0:01:00]} 47. Ra6 {[%clk 0:00:15]}  Kg7 {[%clk 0:00:59]} 48. Be2 {[%clk 0:00:12]}  Kh6 {[%clk 0:00:58]} 49. Bf3 {[%clk 0:00:08]}  Re1+ {[%clk 0:00:58]} 50. Kf2 {[%clk 0:00:08]}  Rb1 {[%clk 0:00:57]} 51. h4 {[%clk 0:00:09]}  Rb2+ {[%clk 0:00:57]} 52. Kg1 {[%clk 0:00:10]}  Rb3 {[%clk 0:00:59]} 53. Kg2 {[%clk 0:00:10]}  Kh7 {[%clk 0:00:58]} 54. h5 {[%clk 0:00:11]}  Rb2+ {[%clk 0:00:58]} 55. Kh3 {[%clk 0:00:11]} 1-0


[Site "Internet"]

[Event "Chessable Masters - Torneo preliminare"]
[White "Weetik, Vjacheslav"]
[Black "Tregubov, Pavel V."]
[WhiteFideId "4153472"]
[BlackFideId "4115341"]
[WhiteElo "2445"]
[BlackElo "2522"]
[Result "1-0"]
[Round "6"]
[TimeControl "600+2"]
[Date "2023.03.13"]
[WhiteClock "0:03:33"]
[BlackClock "0:03:01"]

1. d4 {[%clk 0:10:00]}  Nf6 {[%clk 0:10:00]} 2. c4 {[%clk 0:10:01]}  e6 {[%clk 0:10:01]} 3. g3 {[%clk 0:10:01]}  Bb4+ {[%clk 0:10:00]} 4. Bd2 {[%clk 0:10:02]}  Qe7 {[%clk 0:10:00]} 5. Bg2 {[%clk 0:09:53]}  Nc6 {[%clk 0:10:01]} 6. Nf3 {[%clk 0:09:52]}  Bxd2+ {[%clk 0:09:56]} 7. Nbxd2 {[%clk 0:09:41]}  d6 {[%clk 0:09:56]} 8. O-O {[%clk 0:09:39]}  O-O {[%clk 0:09:56]} 9. e4 {[%clk 0:09:36]}  e5 {[%clk 0:09:57]} 10. d5 {[%clk 0:09:23]}  Nb8 {[%clk 0:09:54]} 11. b4 {[%clk 0:09:09]}  a5 {[%clk 0:09:48]} 12. a3 {[%clk 0:09:09]}  Na6 {[%clk 0:09:48]} 13. Ne1 {[%clk 0:09:04]}  Ng4 {[%clk 0:09:01]} 14. h3 {[%clk 0:08:12]}  Nh6 {[%clk 0:09:01]} 15. Nd3 {[%clk 0:07:57]}  f5 {[%clk 0:09:02]} 16. f4 {[%clk 0:06:38]}  exf4 {[%clk 0:08:15]} 17. Rxf4 {[%clk 0:06:27]}  Bd7 {[%clk 0:08:05]} 18. Qh5 {[%clk 0:06:01]}  fxe4 {[%clk 0:07:46]} 19. Nxe4 {[%clk 0:05:49]}  Rxf4 {[%clk 0:07:34]} 20. Nxf4 {[%clk 0:05:41]}  Nf5 {[%clk 0:07:16]} 21. Kh2 {[%clk 0:05:33]}  Qe5 {[%clk 0:06:53]} 22. Ng5 {[%clk 0:04:44]}  Nh6 {[%clk 0:06:33]} 23. Ra2 {[%clk 0:04:34]}  Rf8 {[%clk 0:04:41]} 24. Re2 {[%clk 0:04:20]}  Qf6 {[%clk 0:04:11]} 25. Nfe6 {[%clk 0:03:36]}  Bxe6 {[%clk 0:03:34]} 26. dxe6 {[%clk 0:03:33]}  Qf7 {[%clk 0:03:01]} 27. exf7+ {[%clk 0:03:33]} 1-0


[Site "Internet"]